{"text_format":"1","workbook":"xlsx","n_sheets":3,"sheets":["Ark1","Ark2","Ark3"],"not_rendered":{"charts":0,"images":0,"macros":1,"external_links":0,"defined_names":0,"comments":0,"pivot_tables":0},"unopened":[],"bounds":{"document_bytes":16777216,"sheet_cells":100000,"rows_first":2000,"rows_last":500,"rows_between":2000,"halvings":0,"cell_chars":16384,"cell_head_chars":4096},"cells_cut":0,"cells_raw":0,"read":"whole","date_system":"1900"}

{"sheet":"Ark1","index":0,"n_rows":128,"n_cols":63,"rows_kept":128,"cut":false,"hidden":false,"merged":[]}
[]
[null,null,null,null,null,null,null,null,null,null,null,null,null,null,null,null,null,null,null,null,null,null,null,null,null,null,null,null,null,null,null," "," ",null,null,null,null,null,null,null,null,null,null,null,null,null,null,null,null,null,null,null,null,null,null,null,null,0]
[" Nøgle til de danske Dyndfluer, Eristalis (Diptera: Syrphidae) ",null,null,null,null,null,null,null,null,null,null,null,null,null,null,null,null,null,null,null,null,null,null,null,null,null,null,null,null,null,null," ",null," "]
[null,null," ",null,null," ",null,null," ",null," ",null," "]
[null,null,null,null,null,null,null,null,null,null,null,null,null,null,null,{"$f":"IF(AJ9=1,VLOOKUP(AJ8,AJ10:AK21,2,FALSE),\"   Eristalis sp.\")","v":"   Eristalis sp."},null,null,null,null,null,null,null,null,null,null,null,null,null,null,null,null,"x",null,null,null,null,null,null,null,null,null,null,null,"*"," ","* "," ",null,"*",null,null,"*",null," ","*"," ",null,"*",null," ","*"," "]
[null,null,null,null,null,null,null,null,null,null,null,null,null,null,null,{"$f":"IF(AJ9=1,VLOOKUP(AJ8,AJ23:AK34,2,FALSE), AK35)","v":"         Dyndflue"},null,null,null,null,null,null,null,null,null,null,null,null,null,null,null,null,"x",null,null,{"$f":"SUM(AS6+AU6+AX6+BA6+BD6+BG6+BJ6)","v":0},"Afkrydsede felter *",null,null,null,null,null,null,null,{"$f":"IF(AT6=0,0,1)","v":0},{"$f":"SUM(AS7:AT7)","v":0},{"$f":"IF(AV6=0,0,1)","v":0},{"$f":"SUM(AU7:AW7)","v":0},null,{"$f":"IF(AY6=0,0,1)","v":0},{"$f":"SUM(AX7:AZ7)","v":0},null,{"$f":"IF(BB6=0,0,1)","v":0},{"$f":"SUM(BA7:BC7)","v":0},null,{"$f":"IF(BE6=0,0,1)","v":0},{"$f":"SUM(BD7:BF7)","v":0},null,{"$f":"IF(BH6=0,0,1)","v":0},{"$f":"SUM(BG7:BI7)","v":0},null,{"$f":"IF(BK6=0,0,1)","v":0},{"$f":"SUM(BJ7:BK7)","v":0}]
["Honningbi-lignende?",null,null,null,null,null,null,null,null,null,null,null,null,null,null,null,null,null,null,null,null,null,null,null,null,null,null,null,null,null,null,{"$f":"IF(AG7= TRUE,\"x\",\" \")","v":" "},0,null,null,null,null,null,null,null,null,null,null,null,{"$f":"IF(AF7=\" \",0,1)","v":0},{"$f":"IF(AF8=\" \",0,1)","v":0},{"$f":"IF(AF10=\" \",0,1)","v":0},{"$f":"IF(AF11=\" \",0,1)","v":0},{"$f":"IF(AF12=\" \",0,1)","v":0},{"$f":"IF(AF14=\" \",0,1)","v":0},{"$f":"IF(AF15=\" \",0,1)","v":0},{"$f":"IF(AF16=\" \",0,1)","v":0},{"$f":"IF(AF18=\" \",0,1)","v":0},{"$f":"IF(AF19=\" \",0,1)","v":0},{"$f":"IF(AF20=\" \",0,1)","v":0},{"$f":"IF(AF22=\" \",0,1)","v":0},{"$f":"IF(AF23=\" \",0,1)","v":0},{"$f":"IF(AF24=\" \",0,1)","v":0},{"$f":"IF(AF26=\" \",0,1)","v":0},{"$f":"IF(AF27=\" \",0,1)","v":0},{"$f":"IF(AF28=\" \",0,1)","v":0},{"$f":"IF(AF30=\" \",0,1)","v":0},{"$f":"IF(AF31=\" \",0,1)","v":0}]
["Humlebi-lignende?",null,null,null,null,null,null,null,null,null,null,null,null,null,{"$f":"IF(AJ9=1,\"Fluen er nu bestemt.  Se ovenfor.\",\" \")","v":" "},null,null,null,null,null,null,null,null,null,null,null,null,null,null,null,null,{"$f":"IF(AG8=TRUE,\"x\",\" \")","v":" "},0,null,null,{"$f":"MAX(AJ10:AJ21)","v":0},"Maks.",null,null,null,null,null,null,null,null,null,null,null,null,null,null,null," "]
[null,null,null,null,null,null,null,null,null,null,null,null,null,{"$f":"IF(AJ9=1,\" \",IF(AJ6=AJ8,\"Se de mulige arter i oversigten nedenfor.\",\" \"))","v":"Se de mulige arter i oversigten nedenfor."},null,null,null,null,null,null,null,null,null,null,null,null,null,null,null,null,null,null,null,null,null,{"$f":"COUNTIF(AJ10:AJ21,AJ8)","v":12},"Ant. Maks",null,null,null,null,null,null,null,"Ho","Hu","As",null,"Au","Ffg",null,"Ffs","Bfg",null,"Bfs","Vt","Vs","Vu","Mk",null,"Ml","Lh","Lu"]
["Ansigt med tydelig sort midterstribe?",null,null,null,null,null,null,null,null,null,null,null,null,null,null,null,null,null,null,null,null,null,null,null,null,null,null,null,null,null,null,{"$f":"IF(AG10= TRUE,\"x\",\" \")","v":" "},0,null,null,{"$f":"SUM(AS10:BK10)","v":0},"Eristalis abusiva",null,null,null,null,null,null,null,{"$f":"IF(AF7=\"x\",1,\" \")","v":" "},null,null,{"$f":"IF(AF11=\"x\",1,\" \")","v":" "},null,null,{"$f":"IF(AF15=\"x\",1,\" \")","v":" "},{"$f":"IF(AF16=\"x\",1,\" \")","v":" "},null,null,{"$f":"IF(AF20=\"x\",1,\" \")","v":" "},null,null,{"$f":"IF(AF24=\"x\",1,\" \")","v":" "},null,{"$f":"IF(AF27=\"x\",1,\" \")","v":" "}," ",null,{"$f":"IF(AF31=\"x\",1,\" \")","v":" "}]
["Ansigt kun med tynd stregagtig stribe?",null,null,null,null,null,null,null,null,null,null,{"$f":"IF(AJ6>AJ8,\"  Afkrydsede kendetegn passer ikke med nøglens.\",\" \")","v":" "},null,null,null,null,null,null,null,null,null,null,null,null,null,null,null,null,null,null,null,{"$f":"IF(AG11= TRUE,\"x\",\" \")","v":" "},0,null,null,{"$f":"SUM(AS11:BK11)","v":0},"Eristalis anthophorina",null,null,null,null,null,null,null,null,{"$f":"IF(AF8=\"x\",1,\" \")","v":" "},{"$f":"IF(AF10=\"x\",1,\" \")","v":" "},null,null,null,null,{"$f":"IF(AF16=\"x\",1,\" \")","v":" "},null,null,{"$f":"IF(AF20=\"x\",1,\" \")","v":" "},{"$f":"IF(AF22=\"x\",1,\" \")","v":" "},{"$f":"IF(AF23=\"x\",1,\" \")","v":" "},null,{"$f":"IF(AF26=\"x\",1,\" \")","v":" "},null,null,null,{"$f":"IF(AF31=\"x\",1,\" \")","v":" "}]
["Ansigt helt uden midterstribe?",null,null,null,null,null,null,null,null,null,null,{"$f":"IF(AJ6>AJ8,\"  Det gør en bestemmelse tvivlsom.    Prøv igen !\",\" \")","v":" "},null,null,null,null,null,null,null,null,null,null,null,null,null,null,null,null,null,null,null,{"$f":"IF(AG12= TRUE,\"x\",\" \")","v":" "},0,null,null,0,"Eristalis arbustorum",null,null,null,null,null,null,null,{"$f":"IF(AF7=\"x\",1,\" \")","v":" "},null,null,null,{"$f":"IF(AF12=\"x\",1,\" \")","v":" "},null,{"$f":"IF(AF15=\"x\",1,\" \")","v":" "},{"$f":"IF(AF16=\"x\",1,\" \")","v":" "},null,null,{"$f":"IF(AF20=\"x\",1,\" \")","v":" "},null,null,{"$f":"IF(AF24=\"x\",1,\" \")","v":" "},null,{"$f":"IF(AF27=\"x\",1,\" \")","v":" "},{"$f":"IF(AF28=\"x\",1,\" \")","v":" "},null,{"$f":"IF(AF31=\"x\",1,\" \")","v":" "}]
[null,null,null,null,null,null,null,null,null,null,"Vil du vil læse mere om en art, så tryk på dens nummer.",null,null,null,null,null,null,null,null,null,null,null,null,null,null,null,null,null,null,null,null," ",null,null,null,0,"Eristalis cryptarum",null,null,null,null,null,null,null,{"$f":"IF(AF7=\"x\",1,\" \")","v":" "},null,{"$f":"IF(AF10=\"x\",1,\" \")","v":" "},null,null,{"$f":"IF(AF14=\"x\",1,\" \")","v":" "},{"$f":"IF(AF15=\"x\",1,\" \")","v":" "},null,{"$f":"IF(AF18=\"x\",1,\" \")","v":" "},{"$f":"IF(AF19=\"x\",1,\" \")","v":" "},null,{"$f":"IF(AF22=\"x\",1,\" \")","v":" "},null,null,null,{"$f":"IF(AF27=\"x\",1,\" \")","v":" "},null,null,{"$f":"IF(AF31=\"x\",1,\" \")","v":" "}]
["Forfødder gule, helt yderst evt. sorte?",null,null,null,null,null,null,null,null,null,null,null,null,null,null,null,null,null,null,null,null,null,null,null,null,null,null," ",null,null,null,{"$f":"IF(AG14= TRUE,\"x\",\" \")","v":" "},0,null,null,0,"Eristalis interrupta",null,null,null,null,null,null,null,{"$f":"IF(AF7=\"x\",1,\" \")","v":" "},null,{"$f":"IF(AF10=\"x\",1,\" \")","v":" "},null,null,null,{"$f":"IF(AF15=\"x\",1,\" \")","v":" "},{"$f":"IF(AF16=\"x\",1,\" \")","v":" "},null,null,{"$f":"IF(AF20=\"x\",1,\" \")","v":" "},null,null,{"$f":"IF(AF24=\"x\",1,\" \")","v":" "},{"$f":"IF(AF26=\"x\",1,\" \")","v":" "},null,null,null,{"$f":"IF(AF31=\"x\",1,\" \")","v":" "}]
["Forfødder kun gule inderst ved basis?",null,null,null,null,null,null,null,null,null,null,null,null,{"$f":"IF(AJ10=AJ8,\"Eristalis abusiva\",\" \")","v":"Eristalis abusiva"},null,null,null,null,null,null,null,{"$f":"IF(AJ23=AJ8,\"Lille Dyndflue\",\" \")","v":"Lille Dyndflue"},null,null,null,null,null,null,null,null,null,{"$f":"IF(AG15= TRUE,\"x\",\" \")","v":" "},0,null,null,0,"Eristalis intricaria",null,null,null,null,null,null,null,null,{"$f":"IF(AF8=\"x\",1,\" \")","v":" "},{"$f":"IF(AF10=\"x\",1,\" \")","v":" "},null,null,null,null,{"$f":"IF(AF16=\"x\",1,\" \")","v":" "},null,null,{"$f":"IF(AF20=\"x\",1,\" \")","v":" "},{"$f":"IF(AF22=\"x\",1,\" \")","v":" "},{"$f":"IF(AF23=\"x\",1,\" \")","v":" "},{"$f":"IF(AF24=\"x\",1,\" \")","v":" "},{"$f":"IF(AF26=\"x\",1,\" \")","v":" "},null,null,null,{"$f":"IF(AF31=\"x\",1,\" \")","v":" "}]
["Forfødder mørke?",null,null,null,null,null,null,null,null,null,null,null,null,{"$f":"IF(AJ11=AJ8,\"Eristalis anthophorina\",\" \")","v":"Eristalis anthophorina"},null,null,null,null,null,null,null,{"$f":"IF(AJ24=AJ8,\"Gul Dyndflue\",\" \")","v":"Gul Dyndflue"},null,null,null,null,null,null,null,null,null,{"$f":"IF(AG16= TRUE,\"x\",\" \")","v":" "},0,null,null,0,"Eristalis lineata",null,null,null,null,null,null,null,{"$f":"IF(AF7=\"x\",1,\" \")","v":" "},null,{"$f":"IF(AF10=\"x\",1,\" \")","v":" "},null,null,null,{"$f":"IF(AF15=\"x\",1,\" \")","v":" "},{"$f":"IF(AF16=\"x\",1,\" \")","v":" "},null,null,{"$f":"IF(AF20=\"x\",1,\" \")","v":" "},{"$f":"IF(AF22=\"x\",1,\" \")","v":" "},null,null,null,{"$f":"IF(AF27=\"x\",1,\" \")","v":" "},null,null,{"$f":"IF(AF31=\"x\",1,\" \")","v":" "}]
[null,null,null,null,null,null,null,null,null,null,null,null,null,{"$f":"IF(AJ12=AJ8,\"Eristalis arbustorum\",\" \")","v":"Eristalis arbustorum"},null,null,null,null,null,null,null,{"$f":"IF(AJ25=AJ8,\"Almindelig Dyndflue\",\" \")","v":"Almindelig Dyndflue"},null,null,null,null,null,null,null,null,null," ",null,null,null,0,"Eristalis oestracea",null,null,null,null,null,null,null,null,{"$f":"IF(AF8=\"x\",1,\" \")","v":" "},{"$f":"IF(AF10=\"x\",1,\" \")","v":" "},null,null,null,null,{"$f":"IF(AF16=\"x\",1,\" \")","v":" "},{"$f":"IF(AF18=\"x\",1,\" \")","v":" "},null,null,{"$f":"IF(AF22=\"x\",1,\" \")","v":" "}," ",{"$f":"IF(AF24=\"x\",1,\" \")","v":" "},{"$f":"IF(AF26=\"x\",1,\" \")","v":" "},null,null,{"$f":"IF(AF30=\"x\",1,\" \")","v":" "}]
["Bagfødder gule, alleryderst evt. sorte? ",null,null,null,null,null,null,null,null,null,null,null,null,{"$f":"IF(AJ13=AJ8,\"Eristalis cryptarum\",\" \")","v":"Eristalis cryptarum"},null,null,null,null,null,null,null,{"$f":"IF(AJ26=AJ8,\"Hedemose-Dyndflue\",\" \")","v":"Hedemose-Dyndflue"},null,null,null,null,null,null,null,null,null,{"$f":"IF(AG18= TRUE,\"x\",\" \")","v":" "},0,null,null,0,"Eristalis pertinax",null,null,null,null,null,null,null,{"$f":"IF(AF7=\"x\",1,\" \")","v":" "},null,null,{"$f":"IF(AF11=\"x\",1,\" \")","v":" "},null,{"$f":"IF(AF14=\"x\",1,\" \")","v":" "},null,null," ",null,{"$f":"IF(AF20=\"x\",1,\" \")","v":" "},null,{"$f":"IF(AF23=\"x\",1,\" \")","v":" "},null,null,{"$f":"IF(AF27=\"x\",1,\" \")","v":" "},{"$f":"IF(AF28=\"x\",1,\" \")","v":" "},null,{"$f":"IF(AF31=\"x\",1,\" \")","v":" "}]
["1. og 2. bagfodsled gule/rødbrune?",null,null,null,null,null,null,null,null,null,null,null,null,{"$f":"IF(AJ14=AJ8,\"Eristalis interrupta\",\" \")","v":"Eristalis interrupta"},null,null,null,null,null,null,null,{"$f":"IF(AJ27=AJ8,\"Mark-Dyndflue\",\" \")","v":"Mark-Dyndflue"},null,null,null,null,null,null,null,null,null,{"$f":"IF(AG19= TRUE,\"x\",\" \")","v":" "},0,null,null,0,"Eristalis rupium- gruppe",null,null,null,null,null,null,null,{"$f":"IF(AF7=\"x\",1,\" \")","v":" "},null,{"$f":"IF(AF10=\"x\",1,\" \")","v":" "},null,null,null,{"$f":"IF(AF15=\"x\",1,\" \")","v":" "},{"$f":"IF(AF16=\"x\",1,\" \")","v":" "},null,{"$f":"IF(AF19=\"x\",1,\" \")","v":" "},null,{"$f":"IF(AF22=\"x\",1,\" \")","v":" "},{"$f":"IF(AF23=\"x\",1,\" \")","v":" "},null,{"$f":"IF(AF26=\"x\",1,\" \")","v":" "},{"$f":"IF(AF27=\"x\",1,\" \")","v":" "},null,null,{"$f":"IF(AF31=\"x\",1,\" \")","v":" "}]
["Bagfødder mørke ?",null,null,null,null,null,null,null,null,null,null,null,null,{"$f":"IF(AJ15=AJ8,\"Eristalis intricaria\",\" \")","v":"Eristalis intricaria"},null,null,null,null,null,null,null,{"$f":"IF(AJ28=AJ8,\"Håret Dyndflue\",\" \")","v":"Håret Dyndflue"},null,null,null,null,null,null,null,null,null,{"$f":"IF(AG20= TRUE,\"x\",\" \")","v":" "},0,null,null,0,"Eristalis similis",null,null,null,null,null,null,null,{"$f":"IF(AF7=\"x\",1,\" \")","v":" "},null,null,{"$f":"IF(AF11=\"x\",1,\" \")","v":" "},null,null,null,{"$f":"IF(AF16=\"x\",1,\" \")","v":" "},null,null,{"$f":"IF(AF20=\"x\",1,\" \")","v":" "},null,null,{"$f":"IF(AF24=\"x\",1,\" \")","v":" "},null,null,{"$f":"IF(AF28=\"x\",1,\" \")","v":" "},null,{"$f":"IF(AF31=\"x\",1,\" \")","v":" "}]
[null,null,null,null,null,null,null,null,null,null,null,null,null,{"$f":"IF(AJ16=AJ8,\"Eristalis lineata\",\" \")","v":"Eristalis lineata"},null,null,null,null,null,null,null,{"$f":"IF(AJ29=AJ8,\"Have-Dyndflue\",\" \")","v":"Have-Dyndflue"},null,null,null,null,null,null,null,null,null," ",null,null,null,0,"Eristalis tenax",null,null,null,null,null,null,null,{"$f":"IF(AF7=\"x\",1,\" \")","v":" "},null,{"$f":"IF(AF10=\"x\",1,\" \")","v":" "},null,null," ",null,{"$f":"IF(AF16=\"x\",1,\" \")","v":" "}," ",null,{"$f":"IF(AF20=\"x\",1,\" \")","v":" "},null,{"$f":"IF(AF23=\"x\",1,\" \")","v":" "},null,null,{"$f":"IF(AF27=\"x\",1,\" \")","v":" "},null,{"$f":"IF(AF30=\"x\",1,\" \")","v":" "}]
["Vinger med tydeligt mørkt bånd?",null,null,null,null,null,null,null,null,null,null,null,null,{"$f":"IF(AJ17=AJ8,\"Eristalis oestracea\",\" \")","v":"Eristalis oestracea"},null,null,null,null,null,null,null,{"$f":"IF(AJ30=AJ8,\"Bremse-Dyndflue\",\" \")","v":"Bremse-Dyndflue"},null,null,null,null,null,null,null,null,null,{"$f":"IF(AG22= TRUE,\"x\",\" \")","v":" "},0]
["Vinger med mindre tydeligt bånd?",null,null,null,null,null,null,null,null,null,null,null,null,{"$f":"IF(AJ18=AJ8,\"Eristalis pertinax\",\" \")","v":"Eristalis pertinax"},null,null,null,null,null,null,null,{"$f":"IF(AJ31=AJ8,\"Gulfodet Dyndflue\",\" \")","v":"Gulfodet Dyndflue"},null,null,null,null,null,null,null,null,null,{"$f":"IF(AG23= TRUE,\"x\",\" \")","v":" "},0,null,null,{"$f":"SUM(AS10:BK10)","v":0},"       Lille Dyndflue",null,null,null,null,null,null,null,1,"Ligner E. arbustorum, men denne",null,null,null,null,null,null,null,null,1,"Eristalis abusiva."]
["Vinger helt uden mørkt bånd?",null,null,null,null,null,null,null,null,null,null,null,null,{"$f":"IF(AJ19=AJ8,\"Eristalis rupium gruppe\",\" \")","v":"Eristalis rupium gruppe"},null,null,null,null,null,null,null,{"$f":"IF(AJ32=AJ8,\"Dyndflue\",\" \")","v":"Dyndflue"},null,null,null,null,null,null,null,null,null,{"$f":"IF(AG24= TRUE,\"x\",\" \")","v":" "},0,null,null,{"$f":"SUM(AS11:BK11)","v":0},"   Gul Dyndflue",null,null,null,null,null,null,null,2,"Følehornsbørsten meget kort",null,null,null,null,null,null,null,null,2,"Eristalis anthophorina."]
[null,null,null,null,null,null,null,null,null,null,null,null,null,{"$f":"IF(AJ20=AJ8,\"Eristalis similis\",\" \")","v":"Eristalis similis"},null,null,null,null,null,null,null,{"$f":"IF(AJ33=AJ8,\"Sydlig Dyndflue\",\" \")","v":"Sydlig Dyndflue"},null,null,null,null,null,null,null,null,null," ",null,null,null,0,"   Almindelig Dyndflue",null,null,null,null,null,null,null,3,"Hannens bagkrop har store matte",null,null,null,null,null,null,null,null,3,"Eristalis arbustorum."]
["Vingemærke ca. så lang som bredt?",null,null,null,null,null,null,null,null,null,null,null,null,{"$f":"IF(AJ21=AJ8,\"Eristalis tenax\",\" \")","v":"Eristalis tenax"},null,null,null,null,null,null,null,{"$f":"IF(AJ34=AJ8,\"Droneflue\",\" \")","v":"Droneflue"},null,null,null,null,null,null,null,null,null,{"$f":"IF(AG26= TRUE,\"x\",\" \")","v":" "},0,null,null,0,"    Hedemose-Dyndflue",null,null,null,null,null,null,null,4,"Eneste Dyndflue, der  har benene",null,null,null,null,null,null,null,null,4,"Eristalis cryptarum."]
["Vingemærke ca. 2-3 gange bredden?",null,null,null,null,null,null,null,null,null,null,null,null,null,null,null,null,null,null,null,null,null,null,null,null,null,null,null,null,null,null,{"$f":"IF(AG27= TRUE,\"x\",\" \")","v":" "},0,null,null,0,"     Mark-Dyndflue",null,null,null,null,null,null,null,5,"Vingemærket punktformet og",null,null,null,null,null,null,null,null,5,"Eristalis interrupta."]
["Vingemærke ca. 4-6 gange bredden?",null,null,null,null,null,null,null,null,null,{"$f":"AI50","v":1},{"$f":"VLOOKUP(K28,BC23:BD34,2)","v":"Eristalis abusiva."},null,null,null,null,null,null,null,{"$f":"VLOOKUP(K28,AS23:AT34,2)","v":"Ligner E. arbustorum, men denne"},null,null,null,null,null,null,null,null,null,null,null,{"$f":"IF(AG28= TRUE,\"x\",\" \")","v":" "},0,null,null,0,"     Håret Dyndflue",null,null,null,null,null,null,null,6,"Meget  forskellige farvenuancer",null,null,null,null,null,null,null,null,6,"Eristalis intricaria."]
[null,null,null,null,null,null,null,null,null,null,{"$f":"VLOOKUP(K28,AS36:AT47,2)","v":" har for- og midtskinnebenene sorte på ca. yderste trediedel, og "},null,null,null,null,null,null,null,null,null,null,null,null,null,null,null,null,null,null,null,null," ",null,null,null,0,"     Have-Dyndflue",null,null,null,null,null,null,null,7,"Store matte gule pletter på 2. bag-",null,null,null,null,null,null,null,null,7,"Eristalis lineata."]
["Bagskinneben med lang sort behåring?",null,null,null,null,null,null,null,null,null,{"$f":"VLOOKUP(K28,AS49:AT60,2)","v":"følehornsbørsten er fjergrenet. E. abusiva har de samme ben gule,"},null,null,null,null,null,null,null,null,null,null,null,null,null,null,null,null,null,null,null,null,{"$f":"IF(AG30= TRUE,\"x\",\" \")","v":" "},0,null,null,0,"    Bremse-Dyndflue",null,null,null,null,null,null,null,8,"Scutellum og vingeskæl hvidlige.",null,null,null,null,null,null,null,null,8,"Eristalis oestracea."]
["Bagskinneben ej særlig langt behårede?",null,null,null,null,null,null,null,null,null,{"$f":"VLOOKUP(K28,AS62:AT73,2)","v":" måske lidt mørke ved spidsen. Følehornsbørsten er  kort behåret,"},null,null,null,null,null,null,null,null,null,null,null,null,null,null,null,null,null,null,null,null,{"$f":"IF(AG31= TRUE,\"x\",\" \")","v":" "},0,null,null,0,"   Gulfodet Dyndflue ",null,null,null,null,null,null,null,9,"Meget let kendelig på de  helt",null,null,null,null,null,null,null,null,9,"Eristalis pertinax."]
[null,null,null,null,null,null,null,null,null,null,{"$f":"VLOOKUP(K28:K28,AS75:AT86,2)","v":"og ansigtsstriben er stregformet. 8-12 mm. Ret alm. Mest i Jylland."},null,null,null,null,null,null,null,null,null,null,null,null,null,null,null,null,null,null,null,null,null,null,null,null,0,"             Dyndflue",null,null,null,null,null,null,null,10,"Tre arter. Hanner: Arterne kan ",null,null,null,null,null,null,null,null,10,"Eristalis rupium gruppe."]
[null,null,null," ",null,null,null,null,null,null," ",null,{"$f":"IF(U40>1,U40,\" \")","v":" "},{"$f":"IF(U40>1,\"arter.\",\" \")","v":" "},null,null,null,null," Dyndfluer Version 1. Bent Haagen Petersen",null,null,null,null,null,null,null,null,null,null,null,null,null,null,null,null,0,"    Sydlig Dyndflue",null,null,null,null,null,null,null,11,"En stor flue med helt klare",null,null,null,null,null,null,null,null,11,"Eristalis similis."]
[null,{"$f":"IF(U40>1,\"Der kan være tale om\",\" \")","v":" "},null,null,null,null,null,null,null,null,null," ",null,null,null,null,null,null,null,null,null,null,null,null,null,null,null,null,null,null,null,null,null,null,null,0,"       Droneflue",null,null,null,null,null,null,null,12,"Mørke hårfrynser på bagskinne-",null,null,null,null,null,null,null,null,12,"Eristalis tenax."]
[null,null,null," ",null,null,null,null,null,null," ",null,{"$f":"IF(U42>1,U42,\" \")","v":" "},null,null,null,null,null,null,null,null,null,null,null,null,null,null,null,null,null,null,null,null,null,null,null,"         Dyndflue"]
[null,{"$f":"IF(U42>1,\"Der kan være tale om\",\" \")","v":" "},null,null,null,null,null,null,null,null,null,null,null,null,null,null,null,null,null,null,null,null,null,null,null,null,null,null,null,null,null,null,null,null,null,null,null,null,null,null,null,null,2,null,1," har for- og midtskinnebenene sorte på ca. yderste trediedel, og ",null,null,null,null,null,null,null,null,null,null,null,null,null,"rødbrune"]
[null,null,null,null,null,null,null,null,null,null,null,null,null,null,null,null,null,null,null,null,null,null,null,null,null,null,null,null,null,null,null,null,null,null,null,null,null,null,null,null,null,null,null,null,2," behåret. Scutellum bleggult. Vingeskæl lyse. Bryst og  bagkrop"]
[null,null,null,null,null,null,null,null,null,null,null,null,null,null,null,null,null,null,null,null,null,null,null,null,null,null,null,null,null,null,null,null,null,null,null,null,null,null,null,null,null,null,null,null,3,"gule sammenhængende pletter, der danner en timeglas-formet teg-"]
[null,null,null,null,null,null,null,null,null,null,null,null,null,null,null,null,null,null,null,null,null,null,null,null,null,null,null,null,null,null,null,null,null,null,null,null,null,null,null,null,null,null,null,null,4," næsten helt gule. Kun det inderste af lårene og de yderste fodled"]
[null,null,null,null,null,null,null,null,null,null,null,null,null,null,null," ",null,null,null,null,null,null,null,null,null,null,null,null,null,null,null,null,null,null,null,null,null,null,null,null,null,null,null,null,5," skarpt afgrænset.Vingerne er helt klare. På bagkroppens 2.led"]
[null,null,null,null,null,null,null,null,null,null,null,null,null,null,null,null,null,null,null,null,null,null,null,null,null,null,null,null,null,null,null,null,null,null,null,null,null,null,null,null,null,null,null,null,6,"forekommer. Karakteristisk er det mørke røgfarvede vingeskæl."]
[null,null,null,null,null,null,null,null,null,null,null,null,null,null,null,null,null,null,null,null,null,null,null,null,null,null,null,null,null,null,null,null,null,null,null,null,null,null,null,null,null,null,null,null,7,"kropsled og små gule pletter på 3. bagkropsleds hjørner. Vingerne "]
[null,null,null,null,null,null,null,null,null,null,null,null,null,null,null,null,null,null,null,null,null,null,null,null,null,null,null,null,null,null,null,null,null,null,null,null,null,null,null,null,null,null,null,null,8," Hunnen har mørkt vingebånd, hannen intet. Bagkropsspidsen oran-"]
[null,null,null,null,null,null,null,null,null,null,null,null,null,null,null,null,null,null,null,null,null,null,null,null,null,null,null,null,null,null,null,null,null,null,null,null,null,null,null,null,null,null,null,null,9,"gule for- og mellemfødder og det lange vingemærke. Kroppen"]
[null,null,null,null,null,null,null,null,null,null,null,null,null,null,null,null,null,null,null,null,null,null,null,null,null,null,null,null,null,null,null,null,null,null,null,null,null,null,null,null,null,null,null,null,10," kun adskilles ved genitalundersøgelse. Hunner: E. picea og E. ru-"]
[null,null,null,null,null,null,null,null,null,null,null,null,null,null,null,null,null,null,null,null,null,null,null,null,null,null,null,null,null,null,null,null,null,null,null,null,null,null,null,null,null,null,null,null,11,"vinger og et langt skarpt afgrænset vingemærke (4-6 x bredden)."]
[null,null,null,null,null,null,null,null,null,null,null,null,null,null,null,null,null,null,null,null,null,null,null,null,null,null,null,null,null,null," ",null," ",null,null,null,null,null,null,null,null,null,null,null,12,"benene, to lodrette mørke hårstrber på øjnene (foruden den lyse"]
[]
[null,null,null,null,null,null,null,null,null,null,null,null,null,null,null,null,null,null,null,null,null,null,null,null,null,null,null,null,null,null,null,null," ",null,null,null,null,null,null,null,null,null,3,null,1,"følehornsbørsten er fjergrenet. E. abusiva har de samme ben gule,"]
[null,null,null,null,null,null,null,null,null,null,null,null,null,null,null,null,null,null,null,null,null,null,null,null,null,null,null,null,null,null,null,null,null," ",1,null,null,null,null,null,null,null,null,null,2," med gul behåring, brystet lysest. Fødderne sorte. Hunnen har tyde-"]
[null,null,null,null,null,null,null,null,null,null,null,null,null,null,null,null,null,null,null,null,null,null,null,null,null,null,null,null,null,null,null,null,null," ",null,null,null,null,null,null,null,null,null,null,3,"ning. Hunnens pletter små eller manglende. Ansigtet gråt, uden sort"]
[null,null,null,null,null,null,null,null,null,null,null,null,null,null,null,null,null,null,null,null,null,null,null,null,null,null,null,null,null,null,null,null,null," ",null,null,null,null,null,null,null,null,null,null,4," er sorte. Vingerne har en stor gulbrun plet midt på. Også vingernes"]
[null,null,null,null,null,null,null,null,null,null,null,null,null,null,null,null,null,null,null,null,null,null,null,null,null,null,null,null,null,null,null,null,null,null,null,null,null,null,null,null,null,null,null,null,5,"store skinnende gule pletter; på 3. led små, der kan mangle hos"]
[null,null,null,null,null,null,null,null,null,null,null,null,null,null,null,null,null,null,null,null,null,null,null,null,null,null,null,null,null,null,null,null,null,null,null,null,null,null,null,null,null,null,null,null,6,"(E. oestracea har hvidt vingeskæl). Vingemærket er punktformet, "]
[null,null,null,null,null,null,null,null,null,null,null,null,null,null,null,null,null,null,null,null,null,null,null,null,null,null,null,null,null,null,null,null,null,null,null,null,null,null,null,null,null,null,null,null,7,"oftest med tydelig mørkt vingebånd. Bagfødder sorte. Forfødder "]
[null,null,null,null,null,null,null,null,null,null,null,null,null,null,null,null,null,null,null,null,null,null,null,null,null,null,null,null,null,null,null,null,null,null,null,null,null,null,null,null,null,null,null,null,8,"gerød. Bagskinneben langt sort behårede. Bagfødderne gult behå-"]
[null,null,null,null,null,null,null,null,null,null,null,null,null,null,null,null,null,null,null,null,null,null,null,null,null,null,null,null,null,null,null,null,null,null,null,null,null,null,null,null,null,null,null,null,9,"kan have et blåsort skær, især hos hannen, der også kendes på den"]
[null,null,null,null,null,null,null,null,null,null,null,null,null,null,null,null,null,null,null,null,null,null,null,null,null,null,null,null,null,null,null,null,null,null,null,null,null,null,null,null,null,null,null,null,10,"pium har beåringen bagtil på 3. bagkropsled opret. E. pseudorupium"]
[null,null,null,null,null,null,null,null,null,null,null,null,null,null,null,null,null,null,null,null,null,null,null,null,null,null,null,null,null,null,null,null,null," ",null,null,null,null,null,null,null,null,null,null,11,"Fødderne sorte, dog er mellemfødderne gule basalt. Bagkroppens"]
[null,null,null,null,null,null,null,null,null,null,null,null,null,null,null,null,null,null,null,null,null,null,null,null,null,null,null,null,null,null,null,null,null,null,null,null,null,null,null,null,null,null,null,null,12,"øjenbehåring) og en meget bred sort  ansigtsstribe kendetegner "]
[null," "]
[null," ",null,null,null,null,null,null,null,null,null,null,null,null,null,null,null,null,null,null,null,null,null,null,null,null,null,null,null,null,null,null,null,null,null,null,null,null,null,null,null,null,4,null,1," måske lidt mørke ved spidsen. Følehornsbørsten er  kort behåret,"]
[null," ",null,null,null,null,null,null,null,null,null,null,null,null,null,null,null,null,null,null,null,null,null,null,null,null,null,null,null,null,null,null,null,null,null,null,null,null,null,null,null,null,null,null,2,"ligt mørkt vingebånd, hannens er  svagere. 11-13 mm. Udbredt,"]
[null," ",null,null,null,null,null,null,null,null,null,null,null,null,null,null,null,null,null,null,null,null,null,null,null,null,null,null,null,null,null,null,null,null,null,null,null,null,null,null,null,null,null,null,3,"midterstribe. Dog  kan slidte eks. have en tynd stribe og ligner da"]
[null," ",null,null,null,null,null,null,null,null,null,null,null,null,null,null,null,null,null,null,null,null,null,null,null,null,null,null,null,null,null,null,null,null,null,null,null,null,null,null,null,null,null,null,4,"basis er gul. 9-13 mm. Arten er meget sjælden og i drastisk tilba-"]
[null," ",null,null,null,null,null,null,null,null,null,null,null,null,null,null,null,null,null,null,null,null,null,null,null,null,null,null,null,null,null,null,null,null,null,null,null,null,null,null,null,null,null,null,5,"hunnen. E. similis har langt vingemærke og stregformet ansigts-"]
[null," ",null,null,null,null,null,null,null,null,null,null,null,null,null,null,null,null,null,null,null,null,null,null,null,null,null,null,null,null,null,null,null,null,null,null,null,null,null,null,null,null,null,null,6,"skarpt afgrænset. Scutellum gulligt. Skinneben elfenbensfarvede "]
[null," ",null,null,null,null,null,null,null,null,null,null,null,null,null,null,null,null,null,null,null,null,null,null,null,null,null,null,null,null,null,null,null,null,null,null,null,null,null,null,null,null,null,null,7,"sorte eller måske lyse ved basis (hun). Alle 3 arter i rupium-grup-"]
[null," ",null,null,null,null,null,null,null,null,null,null,null,null,null,null,null,null,null,null,null,null,null,null,null,null,null,null,null,null,null,null,null,null,null,null,null,null,null,null,null,null,null,null,8,"rede. Mellemskinnebenene gule ved basis. Kan ligne E. intricaria,"]
[null," ",null,null,null,null,null,null,null,null,null,null,null,null,null,null,null,null,null,null,null,null,null,null,null,null,null,null,null,null,null,null,null,null,null,null,null,null,null,null,null,null,null,null,9," tilspidsede bagkrop. Vingebåndet er ikke ret tydeligt. 11-16 mm."]
[null," ",null,null,null,null,null,null,null,null,null,null,null,null,null,null,null,null,null,null,null,null,null,null,null,null,null,null,null,null,null,null,null,null,null,null,null,null,null,null,null,null,null,null,10,"har behåringen halvt nedliggende. E. rupium har bagkroppen blank."]
[null," ",null,null,null,null,null,null,null,null,null,null,null,null,null,null,null,null,null,null,null,null,null,null,null,null,null,null,null,null,null,null,null,null,null,null,null,null,null,null,null,null,null,null,11," gulbrune pletter er ret matte. E. pertinax har for- og mellemfødder"]
[null," ",null,null,null,null,null,null,null,null,null,null,null,null,null,null,null,null,null,null,null,null,null,null,null,null,null,null,null,null,null,null,null,null,null,null,null,null,null,null,null,null,null,null,12,"E. tenax .Hunnens bagkrop er bred. E. oestracea har også  lange sor-"]
[null," "]
[null," ",null,null,null,null,null,null,null,null,null,null,null,null,null,null,null,null,null,null,null,null,null,null,null,null,null,null,null,null,null,null,null,null,null,null,null,null,null,null,null,null,5,null,1,"og ansigtsstriben er stregformet. 8-12 mm. Ret alm. Mest i Jylland."]
[null," ",null,null,null,null,null,null,null,null,null,null,null,null,null,null,null,null,null,null,null,null,null,null,null,null,null,null,null,null,null,null,null,null,null,null,null,null,null,null,null,null,null,null,2,"men en art i tilbagegang."]
[null," ",null,null,null,null,null,null,null,null,null,null,null,null,null,null,null,null,null,null,null,null,null,null,null,null,null,null,null,null,null,null,null,null,null,null,null,null,null,null,null,null,null,null,3," E. abusiva. Følehornsbørsten fjergrenet behåret. 9-12 mm. Alm."]
[null," ",null,null,null,null,null,null,null,null,null,null,null,null,null,null,null,null,null,null,null,null,null,null,null,null,null,null,null,null,null,null,null,null,null,null,null,null,null,null,null,null,null,null,4,"gegang. Vestjylland."]
[null," ",null,null,null,null,null,null,null,null,null,null,null,null,null,null,null,null,null,null,null,null,null,null,null,null,null,null,null,null,null,null,null,null,null,null,null,null,null,null,null,null,null,null,5,"stribe. E. arbustorum har ingen ansigtsstribe. 10-14 mm. Alm."]
[null," ",null,null,null,null,null,null,null,null,null,null,null,null,null,null,null,null,null,null,null,null,null,null,null,null,null,null,null,null,null,null,null,null,null,null,null,null,null,null,null,null,null,null,6,"inderst. Mellemfødder gule ved basis. 10-15 mm. Almindelig."]
[null," ",null,null,null,null,null,null,null,null,null,null,null,null,null,null,null,null,null,null,null,null,null,null,null,null,null,null,null,null,null,null,null,null,null,null,null,null,null,null,null,null,null,null,7,"har bagkroppens pletter mindre og skinnende. 11-14 mm. Ret alm."]
[null,null,null,null,null,null,null,null,null,null,null,null,null,null,null,null,null,null,null,null,null,null,null,null,null,null,null,null,null,null,null,null,null,null,null,null,null,null,null,null,null,null,null,null,8,"men denne har vingeskæl, der er gråsorte.  13-16 mm. Sjælden."]
[null,null,null,null,null,null,null,null,null,null,null,null,null,null,null,null,null,null,null,null,null,null,null,null,null,null,null,null,null,null,null," ",null,null,null,null,null,null,null,null,null,null,null,null,9," Meget almindelig."]
[null,null,null,null,null,null,null,null,null,null,null,null,null,null,null,null,null,null,null,null,null,null,null,null,null,null,null,null,null,null,null,null,null,null,null,null,null,null,null,null,null,null,null,null,10,"Bagkroppen har hos de to andre grå støvstriber. Alle tre er sjældne."]
[null,null,null,null,null,null,null,null,null,null,null,null,null,null,null,null,null,null,null,null,null,null,null,null,null,null,null,null,null,null,null,null,null,null,null,null,null,null,null,null,null,null,null,null,11," helt gule. 14-16 mm. Sjælden,  de senere år dog flere fund."]
[null,null,null,null,null,null,null,null,null,null,null,null,null,null,null,null,null,null,null,null,null,null,null,null,null,null,null,null,null,null,null,null,null,null,null,null,null,null,null,null,null,null,null,null,12,"te hår på bagskinnebene,  men  ligner en Humlebi.14-16 mm. Alm."]
[]
[]
[]
[]
[]
[null,null,null,null,null,null,null,null,null,null,null,null,null,null,null,null,null,null,null,null,null,null,null,null,null,null,null,null,null,null," "]
[]
[null,null,null,null,null,null,null,null,null,null,null,null,null,null,null,null,null,null,null,null,null,null,null,null,null,null,null,null,null,null,null,null," "]
[]
[]
[]
[]
[]
[]
[]
[]
[]
[]
[]
[]
[]
[]
[]
[]
[]
[]
[]
[]
[]
[]
[]
[]
[]
[]
[]
[]
[]
[]
[]
[]
[]
[null,null,null,null,null,null,null,null,null,null,null,null,null,null,null,null,null,null,null,null,null,null,null,null,null,null,null,null,null,null," "]

{"sheet":"Ark2","index":1,"n_rows":0,"n_cols":0,"rows_kept":0,"cut":false,"hidden":false,"merged":[]}

{"sheet":"Ark3","index":2,"n_rows":0,"n_cols":0,"rows_kept":0,"cut":false,"hidden":false,"merged":[]}